fUST/lending_fUST_20250617
["ID","MTS","AMOUNT","RATE_DAILY","PERIOD"]
[366203539,1750116648623,-3239.0,0.000249,2]
[366203540,1750116648633,-3239.0,0.000249,2]
[366203541,1750116648643,-3239.0,0.000249,2]
[366203542,1750116648653,-3239.0,0.000249,2]
[366203543,1750116648662,-3239.0,0.000249,2]
[366203544,1750116648672,-3239.0,0.000249,2]
[366203545,1750116648682,-3239.0,0.000249,2]
[366203546,1750116648691,-3239.0,0.000249,2]
[366203547,1750116648702,-151.0,0.000249,10]
[366203548,1750116648711,-150.0,0.000249,5]
[366203549,1750116648721,-151.0,0.000249,7]
[366203550,1750116648867,-151.0,0.000249,7]
[366203551,1750116648877,-459774.88201396,0.000249,2]
[366203552,1750116648893,-1034.87908113,0.000249,2]
[366203554,1750116781934,214.25051501,0.0001994,2]
[366203555,1750116783709,3354.81301089,0.0002465,120]
[366203558,1750116833599,162.538785,0.00013699,2]
[366203563,1750117421009,1439.78478207,0.0002,2]
[366203564,1750117421035,3560.21521793,0.0002,2]
[366203566,1750117513197,216.39463462,0.00019971,2]
[366203567,1750117521135,-5000.0,0.00020589,2]
[366203568,1750117521159,-300.0,0.00020797,2]
[366203569,1750117521183,-1200.0,0.00020933,2]
[366203570,1750117521206,-1511.65,0.00020934,2]
[366203571,1750117521229,-160.0,0.00020993,2]
[366203572,1750117521253,-500.0,0.00021122,2]
[366203573,1750117521275,-184.21194098,0.00021167,2]
[366203574,1750117521298,-144.13805902,0.00021449,2]
[366203578,1750117763882,851.88,0.00024657,120]
[366203633,1750117833016,-5000.0,0.00020704,2]
[366203635,1750117833029,-1539.27,0.00020913,2]
[366203637,1750117833040,-500.0,0.00021122,2]
[366203639,1750117833051,-300.0,0.00021233,2]
[366203640,1750117833063,-300.0,0.00021233,2]
[366203641,1750117833077,-500.0,0.00021234,2]
[366203642,1750117833089,-385.08409743,0.00021234,2]
[366203643,1750117833103,-346.275,0.00021234,2]
[366203644,1750117833116,-500.0,0.00021234,2]
[366203645,1750117833128,-527.93418379,0.00021234,2]
[366203646,1750117833140,-500.0,0.00021234,2]
[366203648,1750117833152,-500.0,0.00021234,2]
[366203649,1750117833165,-500.0,0.00021234,2]
[366203651,1750117833177,-500.0,0.00021234,2]
[366203653,1750117833189,-500.0,0.00021234,2]
[366203655,1750117833202,-277.47027665,0.00021234,2]
[366203658,1750117833215,-500.0,0.00021533,2]
[366203661,1750117833227,-509.77928341,0.00021533,2]
[366203663,1750117833240,-500.0,0.00021533,2]
[366203665,1750117833251,-1136.8548243,0.00021639,2]
[366203667,1750117833261,-139.32730964,0.00021757,2]
[366203670,1750117833279,-526.67269036,0.00021757,2]
[366203672,1750117833289,-572.82333369,0.00021837,2]
[366203674,1750117833300,-160.0,0.00021906,2]
[366203678,1750117833310,-424.54874296,0.00021906,2]
[366203680,1750117833337,-213.36025772,0.00021906,2]
[366203683,1750117833352,-488.9885298,0.00021923,2]
[366203685,1750117833365,-182.365056,0.00021936,2]
[366203688,1750117833379,-528.44054,0.00022081,2]
[366203690,1750117833395,-500.0,0.00022081,2]
[366203692,1750117833410,-433.2578762,0.00022151,2]
[366203694,1750117833424,-150.0,0.0002255,2]
[366203695,1750117833436,-3078.54,0.00022814,2]
[366203696,1750117833450,-162.538785,0.00023182,2]
[366203698,1750117833462,-182.37,0.00023314,3]
[366203700,1750117833476,-500.0,0.00023314,2]
[366203702,1750117833492,-207.4,0.00023654,2]
[366203705,1750117833508,-8218.37040835,0.00023654,2]
[366203707,1750117833522,-168.0,0.00023974,2]
[366203709,1750117833534,-733.88,0.00024,2]
[366203712,1750117833548,-333.6565149,0.00024137,2]
[366203714,1750117833562,-153.0,0.00024137,2]
[366203716,1750117833575,-964.0,0.00024185,2]
[366203718,1750117833586,-406.0,0.00024185,2]
[366203720,1750117833600,-1256.116045,0.00024401,3]
[366203722,1750117833611,-500.0,0.0002446,2]
[366203724,1750117833624,-160.0,0.0002446,2]
[366203726,1750117833635,-153.0,0.00024596,2]
[366203728,1750117833647,-153.0,0.00024596,2]
[366203731,1750117833659,-153.0,0.00024596,2]
[366203733,1750117833671,-153.0,0.00024596,2]
[366203735,1750117833687,-153.0,0.00024597,2]
[366203738,1750117833700,-153.0,0.00024597,2]
[366203740,1750117833714,-153.0,0.00024597,2]
[366203742,1750117833727,-153.0,0.00024597,2]
[366203745,1750117833741,-153.0,0.00024598,2]
[366203747,1750117833753,-153.0,0.00024598,2]
[366203749,1750117833768,-153.0,0.00024598,2]
[366203751,1750117833782,-500.0,0.00024714,2]
[366203754,1750117833795,-560.39652507,0.00024714,2]
[366203756,1750117833807,-500.0,0.00024714,2]
[366203758,1750117833820,-500.0,0.00024714,2]
[366203761,1750117833833,-4617.82,0.00024715,2]
[366203763,1750117833848,-2000.0,0.000248,2]
[366203765,1750117833861,-2000.0,0.000248,2]
[366203767,1750117833874,-228.39,0.000248,31]
[366203770,1750117833888,-228.39,0.000248,31]
[366203772,1750117833901,-228.39,0.000248,31]
[366203775,1750117833918,-228.39,0.000248,31]
[366203777,1750117833931,-228.39,0.000248,31]
[366203779,1750117833944,-228.39,0.000248,31]
[366203781,1750117833957,-228.39,0.000248,31]
[366203784,1750117833971,-228.39,0.000248,31]
[366203786,1750117833983,-228.39,0.000248,31]
[366203788,1750117833997,-228.39,0.000248,31]
[366203790,1750117834009,-228.39,0.000248,31]
[366203793,1750117834021,-228.39,0.000248,31]
[366203795,1750117834033,-228.39,0.000248,31]
[366203797,1750117834045,-228.39,0.000248,31]
[366203799,1750117834058,-228.39,0.000248,31]
[366203802,1750117834071,-228.39,0.000248,31]
[366203804,1750117834084,-845.47092152,0.0002486,2]
[366203806,1750117834098,-835.67987521,0.00024862,2]
[366203808,1750117834110,-229.90125484,0.00024862,2]
[366203811,1750117834122,-500.0,0.00024873,2]
[366203813,1750117834135,-500.0,0.00024873,2]
[366203815,1750117834146,-231.61,0.00024879,10]
[366203817,1750117834158,-136481.87691497,0.00024889,15]
[366204199,1750117839826,-364.16336407,0.00023653,2]
[366204200,1750117839838,-193.01,0.00024879,10]
[366204201,1750117839848,-500.0,0.00024888,2]
[366204203,1750117839858,-500.0,0.00024888,2]
[366204204,1750117839868,-442.27756755,0.00024888,2]
[366204205,1750117839880,-1662.47551099,0.00024889,15]
[366204206,1750117839893,-1978.69294231,0.00024889,15]
[366204207,1750117839905,-2938.9504266,0.00024889,15]
[366204259,1750117844402,-166.17890248,0.00023874,2]
[366204260,1750117844412,-250.0,0.00024185,2]
[366204261,1750117844423,-191.86,0.000248,31]
[366204262,1750117844434,-191.86,0.000248,31]
[366204263,1750117844445,-191.86,0.000248,31]
[366204264,1750117844458,-191.86,0.000248,31]
[366204265,1750117844468,-191.86,0.000248,31]
[366204266,1750117844477,-191.86,0.000248,31]
[366204267,1750117844488,-191.86,0.000248,31]
[366204268,1750117844498,-191.86,0.000248,31]
[366204270,1750117844507,-191.86,0.000248,31]
[366204272,1750117844518,-191.86,0.000248,31]
[366204274,1750117844527,-421318.59409981,0.00024889,15]
[366204353,1750117846940,-177.058039,0.00020318,4]
[366204355,1750117846951,-2555.07010443,0.00023635,2]
[366204357,1750117846962,-191.86,0.000248,31]
[366204359,1750117846972,-191.86,0.000248,31]
[366204361,1750117846982,-191.86,0.000248,31]
[366204363,1750117846992,-191.86,0.000248,31]
[366204365,1750117847003,-191.86,0.000248,31]
[366204367,1750117847012,-191.86,0.000248,31]
[366204369,1750117847023,-166.17890248,0.00024856,2]
[366204371,1750117847033,-14252.26007963,0.00024889,15]
[366204373,1750117847042,-151.0,0.000249,7]
[366204375,1750117847052,-151.0,0.000249,7]
[366204377,1750117847062,-151.0,0.000249,7]
[366204379,1750117847072,-260.397465,0.000249,7]
[366204381,1750117847082,-207.0949499,0.000249,2]
[366204383,1750117847092,-10780.73621355,0.000249,2]
[366204514,1750117909959,162.538785,0.00013699,2]
[366204518,1750118092390,500.0,0.00024657,120]
[366204519,1750118098548,152.0,0.0002,2]
[366204557,1750118167593,792.0,0.00024657,120]
[366204568,1750118671789,200.0,0.00023744,120]
[366204569,1750118709399,4649.9923024,0.00019697,2]
[366204570,1750118724581,184.944906,0.00019639,2]
[366204575,1750118890627,162.538785,0.00013699,2]
[366204576,1750118911113,200.0,0.00024219,120]
[366204581,1750119031315,200.0,0.00024451,120]
[366204630,1750119032118,-449.97384,0.00020594,2]
[366204633,1750119032132,-170.36135682,0.00020595,2]
[366204635,1750119032143,-258.5872177,0.000206,2]
[366204637,1750119032153,-173.3,0.00020689,2]
[366204639,1750119032163,-300.0,0.00020694,2]
[366204641,1750119032173,-300.0,0.00020694,2]
[366204643,1750119032184,-1200.0,0.00020694,2]
[366204645,1750119032195,-1278.79114188,0.00020695,2]
[366204659,1750119032329,-20550.45228303,0.00020695,2]
[366204661,1750119032343,-8357.31737882,0.00020695,2]
[366204663,1750119032354,-500.0,0.00020695,2]
[366204665,1750119032364,-225.66445957,0.00020695,2]
[366204667,1750119032377,-500.0,0.00020695,2]
[366204669,1750119032387,-500.0,0.00020695,2]
[366204671,1750119032398,-500.0,0.00020695,2]
[366204673,1750119032408,-500.0,0.00020695,2]
[366204675,1750119032419,-500.0,0.00020695,2]
[366204676,1750119032428,-185.29319933,0.00020695,2]
[366204677,1750119032438,-500.0,0.00020695,2]
[366204678,1750119032448,-500.0,0.00020695,2]
[366204679,1750119032458,-500.0,0.00020695,2]
[366204680,1750119032468,-500.0,0.00020695,2]
[366204681,1750119032478,-357.11825547,0.00020695,2]
[366204682,1750119032488,-500.0,0.00020695,2]
[366204683,1750119032497,-500.0,0.00020695,2]
[366204684,1750119032507,-500.0,0.00020695,2]
[366204685,1750119032518,-500.0,0.00020695,2]
[366204686,1750119032528,-500.0,0.00020695,2]
[366204687,1750119032537,-500.0,0.00020695,2]
[366204688,1750119032546,-500.0,0.00020695,2]
[366204689,1750119032556,-500.0,0.00020695,2]
[366204690,1750119032565,-265.0,0.00020695,2]
[366204691,1750119032574,-500.0,0.00020695,2]
[366204692,1750119032584,-204.23890461,0.00020695,2]
[366204693,1750119032593,-500.0,0.00020695,2]
[366204694,1750119032603,-500.0,0.00020695,2]
[366204695,1750119032613,-429.23126767,0.00020695,2]
[366204696,1750119032625,-332.74897028,0.00020695,2]
[366204697,1750119032635,-437.396596,0.00020695,2]
[366204698,1750119032645,-500.0,0.00020695,2]
[366204699,1750119032655,-293.80297576,0.00020695,2]
[366204700,1750119032664,-500.0,0.00020695,2]
[366204701,1750119032674,-500.0,0.00020695,2]
[366204702,1750119032684,-500.0,0.00020695,2]
[366204703,1750119032693,-500.0,0.00020695,2]
[366204705,1750119032702,-500.0,0.00020695,2]
[366204706,1750119032712,-500.0,0.00020695,2]
[366204708,1750119032721,-500.0,0.00020695,2]
[366204709,1750119032732,-500.0,0.00020695,2]
[366204711,1750119032741,-500.0,0.00020695,2]
[366204713,1750119032752,-500.0,0.00020695,2]
[366204715,1750119032762,-500.0,0.00020695,2]
[366204717,1750119032772,-500.0,0.00020695,2]
[366204719,1750119032783,-500.0,0.00020695,2]
[366204721,1750119032793,-500.0,0.00020695,2]
[366204723,1750119032803,-500.0,0.00020695,2]
[366204725,1750119032814,-500.0,0.00020695,2]
[366204727,1750119032825,-500.0,0.00020695,2]
[366204729,1750119032836,-500.0,0.00020695,2]
[366204731,1750119032847,-500.0,0.00020695,2]
[366204733,1750119032858,-500.0,0.00020695,2]
[366204735,1750119032869,-500.0,0.00020695,2]
[366204737,1750119032884,-500.0,0.00020695,2]
[366204739,1750119032895,-500.0,0.00020695,2]
[366204741,1750119032909,-500.0,0.00020695,2]
[366204743,1750119032919,-500.0,0.00020695,2]
[366204745,1750119032931,-500.0,0.00020695,2]
[366204748,1750119032942,-500.0,0.00020695,2]
[366204749,1750119032954,-500.0,0.00020695,2]
[366204751,1750119032964,-500.0,0.00020695,2]
[366204753,1750119032977,-500.0,0.00020695,2]
[366204756,1750119032987,-500.0,0.00020695,2]
[366204757,1750119032998,-500.0,0.00020695,2]
[366204760,1750119033009,-500.0,0.00020695,2]
[366204762,1750119033020,-500.0,0.00020695,2]
[366204763,1750119033030,-589.60748048,0.00020695,2]
[366204766,1750119033041,-500.0,0.00020695,2]
[366204768,1750119033052,-500.0,0.00020695,2]
[366204770,1750119033063,-500.0,0.00020695,2]
[366204771,1750119033073,-500.0,0.00020695,2]
[366204774,1750119033084,-500.0,0.00020695,2]
[366204775,1750119033096,-508.37893964,0.00020695,2]
[366204777,1750119033106,-500.0,0.00020695,2]
[366204779,1750119033119,-500.0,0.00020695,2]
[366204781,1750119033136,-500.0,0.00020695,2]
[366204783,1750119033148,-500.0,0.00020695,2]
[366204785,1750119033159,-500.0,0.00020695,2]
[366204787,1750119033171,-500.0,0.00020695,2]
[366204789,1750119033182,-499.99999999,0.00020695,2]
[366204791,1750119033193,-190.682,0.00020696,2]
[366204793,1750119033203,-300.0,0.00020696,2]
[366204795,1750119033214,-207.12086551,0.00020714,2]
[366204797,1750119033225,-500.0,0.00020714,2]
[366204799,1750119033236,-500.0,0.00020714,2]
[366204801,1750119033248,-500.0,0.00020714,2]
[366204803,1750119033259,-500.0,0.00020714,2]
[366204804,1750119033271,-500.0,0.00020714,2]
[366204806,1750119033282,-413.78652898,0.00020714,2]
[366204808,1750119033293,-500.0,0.00020714,2]
[366204810,1750119033304,-500.0,0.00020714,2]
[366204812,1750119033315,-500.0,0.00020714,2]
[366204814,1750119033326,-500.0,0.00020714,2]
[366204816,1750119033336,-500.0,0.00020714,2]
[366204818,1750119033347,-500.0,0.00020714,2]
[366204820,1750119033359,-500.0,0.00020714,2]
[366204822,1750119033370,-500.0,0.00020714,2]
[366204824,1750119033384,-500.0,0.00020714,2]
[366204826,1750119033394,-500.0,0.00020714,2]
[366204828,1750119033406,-500.0,0.00020714,2]
[366204830,1750119033416,-500.0,0.00020714,2]
[366204832,1750119033427,-500.0,0.00020714,2]
[366204834,1750119033437,-400.0,0.00020714,2]
[366204836,1750119033447,-500.0,0.00020714,2]
[366204838,1750119033458,-500.0,0.00020714,2]
[366204840,1750119033467,-500.0,0.00020722,2]
[366204842,1750119033478,-500.0,0.00020722,2]
[366204844,1750119033489,-500.0,0.0002085,2]
[366204846,1750119033499,-501.77823289,0.0002085,2]
[366204848,1750119033510,-388.13210001,0.00020864,2]
[366204850,1750119033520,-498.15143038,0.000209,2]
[366204851,1750119033530,-500.0,0.00020967,2]
[366204853,1750119033540,-500.0,0.00020967,2]
[366204855,1750119033550,-500.0,0.00020967,2]
[366204857,1750119033560,-1000.0,0.00020968,2]
[366204859,1750119033571,-540.27721509,0.00020968,2]
[366204861,1750119033581,-160.0,0.00020968,2]
[366204863,1750119033593,-4650.0,0.00020972,2]
[366204865,1750119033603,-500.0,0.00021122,2]
[366204867,1750119033614,-1450.05,0.00021141,2]
[366204869,1750119033628,-1000.0,0.0002127,2]
[366204871,1750119033637,-1000.0,0.00021515,2]
[366204873,1750119033647,-3325.19791512,0.00021626,2]
[366204875,1750119033658,-198.93,0.00021681,10]
[366204877,1750119033668,-502.25716102,0.00021691,2]
[366204879,1750119033678,-184.21194098,0.00021691,2]
[366204881,1750119033689,-500.0,0.00021818,2]
[366204882,1750119033699,-160.0,0.00021904,2]
[366204884,1750119033709,-160.0,0.00021904,2]
[366204886,1750119033720,-160.0,0.00021904,2]
[366204888,1750119033730,-424.54874296,0.00021923,2]
[366204890,1750119033741,-835.67987521,0.00021923,2]
[366204892,1750119033751,-229.90125484,0.00021923,2]
[366204894,1750119033762,-845.47092152,0.00021923,2]
[366204896,1750119033773,-203.0,0.00022,2]
[366204898,1750119033786,-690.8588459,0.00022076,2]
[366204900,1750119033797,-238.72,0.00022099,10]
[366204901,1750119033807,-24900.0,0.00022109,2]
[366204903,1750119033817,-160.0,0.00022338,2]
[366204905,1750119033828,-420.0,0.00022517,2]
[366204907,1750119033838,-248.0,0.00022517,2]
[366204909,1750119033848,-150.0,0.00022557,2]
[366204911,1750119033858,-1410.0,0.00022625,2]
[366204913,1750119033867,-170.3613568,0.0002273,2]
[366204915,1750119033883,-203.0,0.00023014,7]
[366204917,1750119033894,-2900.11,0.00023062,2]
[366204919,1750119033904,-3000.0,0.000231,2]
[366204921,1750119033914,-3000.0,0.0002311,2]
[366204923,1750119033924,-3000.0,0.0002312,2]
[366204925,1750119033937,-822.06986505,0.00023124,2]
[366204927,1750119033947,-3000.0,0.0002313,2]
[366204929,1750119033957,-552.45,0.0002313,3]
[366204931,1750119033968,-828.69,0.0002313,3]
[366204933,1750119033980,-3000.0,0.0002314,2]
[366204934,1750119033990,-276.22,0.0002314,3]
[366204936,1750119034000,-3000.0,0.0002315,2]
[366204938,1750119034012,-3000.0,0.0002316,2]
[366204940,1750119034022,-3000.0,0.0002317,2]
[366204942,1750119034032,-3000.0,0.0002318,2]
[366204944,1750119034042,-3000.0,0.0002319,2]
[366204946,1750119034052,-3796.295596,0.000232,2]
[366204948,1750119034062,-500.0,0.00023314,2]
[366204950,1750119034073,-12537.89035583,0.0002363,2]
[366204952,1750119034083,-207.4,0.00023654,2]
[366204954,1750119034101,-160.0,0.00023708,2]
[366204956,1750119034111,-406.0,0.00023755,2]
[366204958,1750119034126,-428.57648092,0.00023924,2]
[366204959,1750119034138,-660.49,0.00024,2]
[366204961,1750119034150,-365.4091647,0.00024,2]
[366204963,1750119034161,-365.4091647,0.00024,2]
[366204965,1750119034172,-365.4091647,0.00024,2]
[366204967,1750119034182,-365.4091647,0.00024,2]
[366204969,1750119034193,-365.4091647,0.00024,2]
[366204971,1750119034204,-365.4091647,0.00024,2]
[366204973,1750119034215,-365.4091647,0.00024,2]
[366204975,1750119034226,-428.57648092,0.00024165,2]
[366204977,1750119034237,-150.0,0.00024185,2]
[366204979,1750119034248,-150.0,0.00024185,2]
[366204981,1750119034258,-150.0,0.00024185,2]
[366204983,1750119034269,-1076.670896,0.00024401,3]
[366204985,1750119034279,-1104.9,0.000245,3]
[366204987,1750119034290,-552.44,0.0002451,3]
[366204989,1750119034302,-428.57648093,0.00024522,2]
[366204991,1750119034312,-153.0,0.00024588,2]
[366204993,1750119034323,-153.0,0.00024588,2]
[366204995,1750119034334,-153.0,0.00024588,2]
[366204996,1750119034344,-153.0,0.00024588,2]
[366204998,1750119034355,-153.0,0.00024588,2]
[366205000,1750119034369,-153.0,0.00024589,2]
[366205002,1750119034384,-153.0,0.00024589,2]
[366205004,1750119034395,-153.0,0.00024589,2]
[366205006,1750119034406,-646.75,0.0002469,3]
[366205008,1750119034417,-151.0,0.000247,6]
[366205010,1750119034427,-200.0,0.00024742,120]
[366205011,1750119034437,-2000.0,0.000248,2]
[366205012,1750119034447,-2000.0,0.000248,2]
[366205014,1750119034457,-2724.47,0.000248,30]
[366205016,1750119034468,-6594.25726162,0.000248,2]
[366205018,1750119034479,-161.18,0.000248,31]
[366205019,1750119034490,-161.18,0.000248,31]
[366205020,1750119034500,-161.18,0.000248,31]
[366205021,1750119034510,-161.18,0.000248,31]
[366205022,1750119034521,-161.18,0.000248,31]
[366205023,1750119034532,-161.18,0.000248,31]
[366205024,1750119034542,-161.18,0.000248,31]
[366205026,1750119034552,-161.18,0.000248,31]
[366205028,1750119034563,-161.18,0.000248,31]
[366205030,1750119034574,-161.18,0.000248,31]
[366205032,1750119034584,-161.18,0.000248,31]
[366205033,1750119034594,-161.18,0.000248,31]
[366205035,1750119034605,-161.18,0.000248,31]
[366205037,1750119034615,-161.18,0.000248,31]
[366205039,1750119034627,-161.18,0.000248,31]
[366205041,1750119034637,-161.18,0.000248,31]
[366205043,1750119034647,-200.0,0.00024809,120]
[366205045,1750119034658,-200.0,0.00024861,120]
[366205047,1750119034668,-170.3613568,0.00024864,2]
[366205049,1750119034679,-646.75,0.0002489,6]
[366205051,1750119034690,-25825.0533397,0.000249,2]
[366205052,1750119034700,-30407.73224965,0.000249,2]
[366205060,1750119034785,-570.62338394,0.000249,2]
[366205061,1750119034798,-7331.28130015,0.000249,2]
[366205090,1750119038968,-584.7048124,0.00024832,2]
[366205092,1750119038980,-4940.50532835,0.00024832,2]
[366205093,1750119038994,-1069.04712087,0.00024832,2]
[366205094,1750119039005,-19477.57359727,0.000249,2]
[366205097,1750119039016,-151.0,0.000249,7]
[366205099,1750119039026,-151.0,0.000249,7]
[366205101,1750119039035,-151.0,0.000249,7]
[366205104,1750119039045,-200.813824,0.000249,7]
[366205107,1750119039055,-200.813824,0.000249,7]
[366205109,1750119039064,-151.0,0.000249,7]
[366205110,1750119039073,-151.0,0.000249,7]
[366205111,1750119039083,-338.812319,0.000249,7]
[366205112,1750119039092,-338.812319,0.000249,7]
[366205113,1750119039102,-338.812319,0.000249,7]
[366205114,1750119039112,-338.812319,0.000249,7]
[366205115,1750119039122,-154.652458,0.000249,7]
[366205116,1750119039133,-154.652458,0.000249,7]
[366205117,1750119039142,-154.652458,0.000249,7]
[366205118,1750119039151,-154.652458,0.000249,7]
[366205119,1750119039161,-275.506482,0.000249,7]
[366205120,1750119039171,-275.506482,0.000249,7]
[366205121,1750119039181,-275.506482,0.000249,7]
[366205122,1750119039192,-275.506482,0.000249,7]
[366205123,1750119039202,-221.814456,0.000249,7]
[366205124,1750119039212,-221.814456,0.000249,7]
[366205125,1750119039222,-151.0,0.000249,7]
[366205126,1750119039233,-151.0,0.000249,7]
[366205127,1750119039243,-151.0,0.000249,7]
[366205128,1750119039253,-151.0,0.000249,7]
[366205129,1750119039263,-100846.05196251,0.000249,2]
[366205130,1750119039275,-6028.60658248,0.000249,2]
[366205131,1750119039287,-715.40662909,0.000249,2]
[366205194,1750119040646,-597.49,0.00024864,2]
[366205445,1750119042988,-920.0,0.00024864,2]
[366206382,1750119392370,200.0,0.00023798,120]
[366206385,1750119511465,200.0,0.00023714,120]
[366206387,1750119631626,200.0,0.00024089,120]
[366206397,1750120051075,200.0,0.00024503,120]
[366206401,1750120111563,192.96532368,0.00019,2]
[366206403,1750120123884,180.14706248,0.0002,2]
[366206404,1750120123941,190227.25697116,0.00024963,60]
[366206411,1750120127235,150.99999966,0.00024963,120]
[366206412,1750120129276,409.3749632,0.0002,2]
[366206417,1750120155276,1870.0,0.00024963,60]
[366206464,1750120232169,200.0,0.00024618,120]
[366206492,1750120232576,-228.39029266,0.0002013,2]
[366206493,1750120232587,-228.39029262,0.00020141,2]
[366206494,1750120232597,-228.39029262,0.00020153,2]
[366206495,1750120232608,-228.39029262,0.00020164,2]
[366206496,1750120232620,-184.944906,0.00020206,2]
[366206497,1750120232630,-156.587,0.0002022,2]
[366206498,1750120232640,-239.0,0.0002023,2]
[366206499,1750120232650,-300.0,0.0002023,2]
[366206500,1750120232660,-300.0,0.0002023,2]
[366206501,1750120232670,-300.0,0.00020231,2]
[366206502,1750120232682,-1200.0,0.00020231,2]
[366206503,1750120232691,-20419.6738527,0.00020232,2]
[366206504,1750120232701,-151.00000001,0.00020275,2]
[366206506,1750120232711,-508.31064745,0.0002095,2]
[366206508,1750120232722,-1415.55,0.00021145,2]
[366206510,1750120232732,-186.586,0.00021314,2]
[366206512,1750120232742,-777.7427648,0.00021504,2]
[366206514,1750120232752,-141.9518591,0.00021932,2]
[366206516,1750120232764,-282.59688386,0.00021932,2]
[366206518,1750120232774,-33.46775414,0.00021932,2]
[366206520,1750120232787,-196.4335007,0.00021932,2]
[366206522,1750120232796,-224.7664993,0.00021932,2]
[366206526,1750120232817,-620.70442222,0.00021932,2]
[366206528,1750120232827,-12537.89035583,0.00021932,2]
[366206530,1750120232836,-159.0,0.00022,2]
[366206533,1750120232846,-160.36119306,0.00022,2]
[366206535,1750120232856,-159.0,0.00023014,7]
[366206536,1750120232865,-168.0,0.00023049,2]
[366206537,1750120232878,-2831.11,0.00023068,2]
[366206539,1750120232888,-365.4091647,0.000231,2]
[366206541,1750120232898,-168.0,0.00023513,2]
[366206543,1750120232908,-207.4,0.00023654,2]
[366206546,1750120232917,-500.0,0.00023799,2]
[366206549,1750120232927,-192.44703515,0.00023799,2]
[366206570,1750120233072,-500.0,0.00023799,2]
[366206571,1750120233082,-500.0,0.00023799,2]
[366206572,1750120233093,-500.0,0.00023799,2]
[366206573,1750120233103,-500.0,0.00023799,2]
[366206574,1750120233113,-500.0,0.00023799,2]
[366206575,1750120233126,-500.0,0.00023799,2]
[366206576,1750120233136,-500.0,0.00023799,2]
[366206577,1750120233146,-500.0,0.00023799,2]
[366206578,1750120233157,-500.0,0.00023799,2]
[366206579,1750120233168,-500.0,0.00023799,2]
[366206580,1750120233178,-500.0,0.00023799,2]
[366206581,1750120233188,-500.0,0.00023799,2]
[366206582,1750120233198,-447.90524176,0.00023799,2]
[366206583,1750120233208,-500.0,0.00023799,2]
[366206584,1750120233218,-28157.11649625,0.000238,3]
[366206592,1750120238279,-228.39029262,0.00020175,2]
[366206593,1750120238290,-500.0,0.00023799,2]
[366206594,1750120238300,-500.0,0.00023799,2]
[366206596,1750120238309,-11.73410661,0.00023799,2]
[366206730,1750120246275,-500.0,0.00020949,2]
[366206732,1750120246286,-158.80347419,0.00020949,2]
[366206734,1750120246296,-349.40491018,0.00020949,2]
[366206736,1750120246307,-500.0,0.00020949,2]
[366206738,1750120246317,-500.0,0.00020949,2]
[366206740,1750120246327,-217.62625734,0.00020949,2]
[366206742,1750120246338,-159.71073289,0.00020949,2]